bitfinex/quotes_ETHUSD_20220226
["timestamp","ask_amount","ask_price","bid_price","bid_amount"]
[1645879989385,0.85454074,2760.8,2760.4,1.6]
[1645879989593,0.6820211,2761.4,2760.4,0.3]
[1645879989846,0.6820211,2761.4,2760.4,1.0]
[1645879989847,0.00481095,2760.8,2760.4,1.0]
[1645879990045,0.00481095,2760.8,2760.1,1.823]
[1645879990241,0.00481095,2760.8,2760.0,1.82931002]
[1645879990242,0.85457576,2760.7,2760.0,0.01760002]
[1645879990843,0.0046581,2760.5,2760.0,0.01760002]
[1645879991143,0.85457576,2760.4,2760.0,0.01760002]
[1645879991346,0.85457576,2760.4,2760.0,0.92355002]
[1645879991944,0.68586957,2761.0,2760.0,0.92355002]
[1645879992145,0.0046582,2760.3,2760.0,0.92355002]
[1645879992745,0.0046582,2760.3,2760.0,0.01760002]
[1645879992746,0.8550393,2760.2,2760.0,0.01760002]
[1645879992945,0.0046582,2760.3,2760.0,0.01760002]
[1645879993146,0.68586957,2761.0,2760.0,0.01760002]
[1645879993349,0.00465824,2760.3,2760.0,0.01760002]
[1645879993788,0.85523283,2760.2,2760.0,0.01760002]
[1645879993988,0.85523283,2760.2,2759.6,1.1516]
[1645879994187,0.85523283,2760.2,2759.5,4.6428795]
[1645879994390,0.3625,2760.7,2759.5,4.6428795]
[1645879994391,0.85523283,2760.1,2759.5,4.6428795]
[1645879994589,0.00466854,2760.2,2759.5,2.1120795]
[1645879994790,0.85543379,2760.1,2759.5,2.1120795]
[1645879994992,0.85543379,2760.1,2759.5,1.8120795]
[1645879995293,0.85543379,2760.1,2759.5,2.1120795]
[1645879995793,0.00466874,2759.9,2759.5,2.1120795]
[1645879995992,0.00466874,2759.9,2759.5,0.3]
[1645879996192,0.00466874,2759.9,2759.4,0.3]
[1645879996394,0.00466874,2759.9,2759.3,0.84209992]
[1645879996592,0.00466874,2759.9,2759.4,0.65791985]
[1645879996793,0.1449,2760.8,2759.4,0.65791985]
[1645879996794,0.6820211,2760.5,2759.4,0.65791985]
[1645879997006,0.00466884,2759.8,2759.4,0.65791985]
[1645879997193,0.00466884,2759.8,2759.4,1.56403985]
[1645879997434,0.00466884,2759.8,2759.5,1.56402865]
[1645879997635,0.00466884,2759.8,2759.5,1.2061088]
[1645879997837,0.6820211,2760.6,2759.5,1.2061088]
[1645879998033,0.00485586,2759.8,2759.5,1.2061088]
[1645879998235,0.00485586,2759.8,2759.2,6.5251314]
[1645879998437,0.00485586,2759.8,2759.3,0.65873963]
[1645879998438,0.85649695,2759.7,2759.3,0.65873963]
[1645879998835,0.85649695,2759.7,2759.2,0.65873963]
[1645879999239,0.86135291,2759.6,2759.2,0.65873963]
[1645879999438,0.00485596,2759.6,2759.2,0.65873963]
[1645879999838,0.85734755,2759.5,2759.0,1.2376]
[1645880000043,0.85734755,2759.5,2759.1,0.6596344]
[1645880000244,0.85734755,2759.5,2758.9,7.2489]
[1645880000449,0.85734755,2759.4,2759.0,0.65961775]
[1645880000646,0.85734755,2759.3,2759.0,0.65961775]
[1645880001678,0.00464857,2759.3,2759.0,0.65961775]
[1645880002581,3.5,2759.8,2759.0,0.65961775]
[1645880002779,0.85750239,2759.7,2759.0,0.65961775]
[1645880002983,0.00464857,2759.3,2759.0,0.65961775]
[1645880003181,0.85750239,2759.2,2759.0,0.65961775]
[1645880003986,0.00464852,2759.3,2759.0,0.65961775]
[1645880004181,0.85808087,2759.2,2759.0,0.65961775]
[1645880004837,0.85670668,2759.2,2759.0,0.65961775]
[1645880005233,0.0043516,2759.3,2759.0,0.65961775]
[1645880006331,3.5,2759.7,2759.0,0.65961775]
[1645880006532,0.00436974,2759.3,2759.0,0.65961775]
[1645880007535,3.5,2759.7,2759.0,0.65961775]
[1645880007733,0.00436974,2759.3,2759.0,0.65961775]
[1645880008582,3.5,2759.7,2759.0,0.65961775]
[1645880008784,3.5,2759.8,2759.0,0.65961775]
[1645880008985,0.00436974,2759.3,2759.0,0.65961775]
[1645880009385,0.00436974,2759.3,2759.0,1.02211775]
[1645880009586,0.00436974,2759.3,2759.1,0.523]
[1645880009587,0.00055685,2759.3,2759.1,0.523]
[1645880009786,4.4541,2760.2,2759.1,0.523]
[1645880009787,3.2764,2760.2,2759.1,0.523]
[1645880009986,6.7764,2760.2,2759.1,0.523]
[1645880010192,0.00439791,2759.3,2759.0,0.3]
[1645880010789,0.00439791,2759.3,2759.2,1.0]
[1645880011190,3.5,2760.0,2759.0,0.3]
[1645880011592,3.5,2760.0,2758.9,11.68]
[1645880012443,0.6820211,2760.1,2758.9,11.0425]
[1645880012642,3.5,2760.0,2758.9,12.0425]
[1645880013646,0.00499916,2759.6,2758.9,12.04750032]
[1645880014645,3.4213,2760.2,2758.9,12.0425]
[1645880014843,0.00499921,2759.4,2758.9,13.47680009]
[1645880015649,0.00499921,2759.4,2759.1,0.3625]
[1645880015650,9.921e-05,2759.4,2759.1,0.3625]
[1645880015857,0.6820211,2760.7,2759.2,1.42911]
[1645880016092,0.6820211,2760.8,2759.4,0.3625]
[1645880016293,0.6820211,2760.8,2759.6,1.3625]
[1645880016494,0.00384847,2761.0,2759.7,0.8855]
[1645880016690,0.00384847,2761.0,2759.7,1.1855]
[1645880017292,7.7762,2761.2,2759.7,1.1855]
[1645880017293,3.50384847,2761.1,2760.0,1.03305842]
[1645880018093,3.50384847,2761.1,2759.9,0.3]
[1645880018291,0.00384847,2761.1,2759.8,1.1996]
[1645880018491,0.00499842,2760.7,2759.8,1.1996]
[1645880019393,3.50384847,2760.9,2759.8,1.1996]
[1645880019841,0.00499863,2760.4,2759.8,1.1996]
[1645880020738,14.95634847,2761.1,2759.8,1.1996]
[1645880020941,0.00499873,2760.2,2759.8,1.1996]
[1645880022045,0.00499879,2760.1,2759.8,1.1996]
[1645880022243,0.00499879,2760.1,2759.8,1.3445]
[1645880023044,3.86634847,2761.1,2759.8,1.3445]
[1645880023248,0.00499883,2760.1,2759.8,1.3445]
[1645880023445,0.00499883,2760.1,2759.8,1.1996]
[1645880023884,0.00499883,2760.1,2759.5,3.0253]
[1645880024082,0.00499883,2760.1,2759.5,3.0753]
[1645880024282,4.01124847,2760.8,2759.5,3.0753]
[1645880024483,0.00499893,2759.9,2759.5,3.0753]
[1645880025385,4.01124847,2760.8,2759.5,3.0753]
[1645880025585,0.004999,2759.8,2759.5,3.0753]
[1645880025986,0.004999,2759.8,2759.5,2.7753]
[1645880026390,0.004999,2759.8,2759.3,7.45]
[1645880026789,3.5,2760.5,2759.3,7.45]
[1645880026986,0.00499903,2759.8,2759.3,7.45]
[1645880027841,3.5,2760.3,2759.3,7.45]
[1645880028043,0.0049991,2759.7,2759.3,7.45]
[1645880028444,0.0049991,2759.7,2759.3,8.56788677]
[1645880029048,3.5,2760.1,2759.3,7.45]
[1645880029243,0.00499913,2759.6,2759.3,7.45]
[1645880030248,3.5,2760.4,2759.3,7.45]
[1645880030444,3.43132712,2760.7,2759.4,1.26825799]
[1645880030445,0.00499916,2759.6,2759.4,1.26825799]
[1645880031279,0.00499916,2759.6,2759.3,7.45]
[1645880031582,0.00499913,2759.6,2759.3,7.45]
[1645880032580,3.5,2760.4,2759.3,7.45]
[1645880032779,6.7707,2760.7,2759.5,1.14284718]
[1645880032982,0.00499916,2759.6,2759.5,1.14284718]
[1645880033780,3.5,2760.5,2759.5,1.14284718]
[1645880033981,0.0049991,2759.7,2759.5,1.14284718]
[1645880034182,0.0049991,2759.7,2759.3,7.45]
[1645880034580,0.0049991,2759.7,2759.3,8.71866]
[1645880034838,0.0049991,2759.7,2759.4,0.1449]
[1645880035032,3.2707,2760.7,2759.4,1.1449]
[1645880035233,0.00499913,2759.6,2759.4,0.1449]
[1645880035634,0.00499913,2759.6,2759.5,1.44893482]
[1645880035839,0.00499913,2759.6,2759.5,0.6625]
[1645880036038,0.00499913,2759.6,2759.5,0.3]
[1645880036237,6.7707,2760.7,2759.4,1.4449]
[1645880036438,0.0049991,2759.7,2759.4,0.4449]
[1645880037338,0.01999278,2760.2,2759.4,0.4449]
[1645880037538,3.5,2760.5,2759.4,0.3]
[1645880037739,0.0049991,2759.7,2759.3,7.75]
[1645880038579,0.31315646,2760.6,2759.6,1.06424927]
[1645880038780,6.7707,2760.7,2759.6,1.36424927]
[1645880038781,3.4156,2760.7,2759.6,1.36424927]
[1645880038981,3.4156,2760.7,2759.6,0.3]
[1645880038982,0.01999255,2760.2,2759.6,0.3]
[1645880039583,0.01999255,2760.2,2759.5,1.5142]
[1645880039781,3.5,2760.6,2759.5,1.5142]
[1645880040187,4.48423024,2760.7,2759.5,1.2142]
[1645880040385,4.84673024,2760.7,2759.5,1.2142]
[1645880040586,4.84673024,2760.7,2759.3,7.75]
[1645880040587,4.68442,2760.7,2759.3,7.75]
[1645880040788,4.68442,2760.7,2759.4,0.65088588]
[1645880040789,0.68598114,2760.4,2759.4,0.65088588]
[1645880041184,0.68598114,2760.3,2759.4,0.65088588]
[1645880041386,0.68598114,2760.3,2759.6,0.00499984]
[1645880041387,0.00499879,2760.1,2759.6,0.00499984]
[1645880041586,0.86953053,2760.0,2759.7,0.65088588]
[1645880042187,0.86953053,2760.0,2759.3,9.38227079]
[1645880042430,0.00499869,2760.1,2759.6,0.00499967]
[1645880043434,0.68598114,2760.3,2759.3,9.98846609]
[1645880043635,0.00465656,2760.1,2759.6,0.00465747]
[1645880044736,0.68598114,2760.3,2759.3,8.93737079]
[1645880044933,0.00465656,2760.1,2759.6,0.00465747]
[1645880045334,0.67133231,2760.4,2759.7,5.0]
[1645880045534,0.67133231,2760.4,2759.6,0.00465747]
[1645880045735,1.05954153,2760.6,2759.6,0.00465747]
[1645880045935,1.05954153,2760.6,2759.3,8.93737079]
[1645880046187,12.14954153,2760.6,2759.3,8.6383]
[1645880046386,11.09,2760.4,2759.3,8.6383]
[1645880046585,12.00464153,2760.2,2759.3,8.6383]
[1645880047592,12.00745841,2760.2,2759.3,8.6383]
[1645880048292,12.00464153,2760.2,2759.3,8.6383]
[1645880048494,12.00745841,2760.2,2759.3,8.6383]
[1645880048894,0.91745841,2760.2,2759.3,8.6383]
[1645880049095,0.91745841,2760.2,2759.3,8.5883]
[1645880049495,0.91464153,2760.2,2759.3,8.5883]
[1645880049695,0.91464153,2760.2,2759.6,0.00468371]
[1645880049696,12.00932418,2760.2,2759.6,0.00468371]
[1645880049946,0.00067483,2759.4,2759.3,1.1883]
[1645880053448,0.00067483,2759.4,2759.3,1.5508]
[1645880055990,0.00067483,2759.4,2759.3,6.17861419]
[1645880056193,4.20533003,2760.7,2760.4,1.0306355]
[1645880056194,0.0199885,2760.7,2760.4,1.0306355]
[1645880056393,0.0199885,2760.7,2760.4,3.9746061]
[1645880056593,0.0199885,2760.7,2760.5,0.8855]
[1645880056792,0.00384847,2761.3,2760.5,1.36665]
[1645880056991,0.91849,2761.5,2760.5,1.51145]
[1645880057650,0.91849,2761.5,2760.7,0.9057109]
[1645880057844,0.91464153,2761.6,2760.7,1.8114409]
[1645880058044,7.5,2761.4,2760.4,0.23591632]
[1645880058246,7.5,2761.4,2760.2,1.0553874]
[1645880058247,0.01266676,2760.7,2760.2,1.0553874]
[1645880058445,0.01266676,2760.7,2759.7,6.3655]
[1645880058644,11.09,2760.6,2759.5,3.1549]
[1645880058845,5.09496393,2760.6,2759.5,3.1549]
[1645880059046,0.1449,2760.6,2759.5,3.1549]
[1645880059245,0.1449,2760.6,2759.5,4.37583286]
[1645880059448,0.1449,2760.6,2759.7,0.00499957]
[1645880059449,0.00499867,2760.2,2759.7,0.00499957]
[1645880060253,0.1449,2760.6,2759.5,3.4549]
[1645880060453,0.00499856,2760.2,2759.7,0.00499946]
[1645880061491,0.1449,2760.6,2759.5,3.4549]
[1645880061692,0.00316937,2760.2,2759.7,0.00499946]
[1645880062293,0.00316937,2760.2,2759.8,0.6487655]
[1645880062694,0.87200974,2760.4,2759.8,0.6487655]
[1645880062898,0.87200974,2760.4,2759.9,0.6487655]
[1645880063093,0.87200974,2760.4,2760.0,0.6487655]
[1645880063293,0.87200974,2760.4,2759.5,0.3]
[1645880063494,0.87200974,2760.4,2759.6,0.64891552]
[1645880063695,0.87200974,2760.4,2759.7,0.64891552]
[1645880063894,0.87200974,2760.4,2759.4,0.25]
[1645880063895,0.87200974,2760.3,2759.8,0.64891552]
[1645880064195,0.87200974,2760.2,2759.9,0.64891552]
[1645880065263,0.87200974,2760.1,2760.0,0.64891552]
[1645880065466,0.87200974,2760.2,2759.9,0.64891552]
[1645880066463,0.68608387,2760.5,2760.0,0.64891552]
[1645880066464,0.87200974,2760.1,2760.0,0.64891552]
[1645880066864,0.87200974,2760.2,2759.9,0.64891552]
[1645880067063,0.00499851,2760.3,2760.0,0.64891552]
[1645880067064,0.87200974,2760.1,2760.0,0.64891552]
[1645880067268,0.87200974,2760.2,2759.9,0.64891552]
[1645880067664,0.87200974,2760.1,2760.0,0.64891552]
[1645880067865,0.00499851,2760.3,2759.8,0.00499952]
[1645880067866,0.87200974,2760.2,2759.9,0.64891552]
[1645880068067,0.87200974,2760.1,2760.0,0.64891552]
[1645880068264,0.87200974,2760.2,2759.9,0.64891552]
[1645880069097,0.87200974,2760.1,2760.0,0.64891552]
[1645880069297,0.87200974,2760.1,2759.9,0.64891552]
[1645880069499,0.87200974,2760.0,2759.9,0.64891552]
[1645880069699,0.87200974,2760.2,2759.9,0.64891552]
[1645880070104,0.87200974,2760.2,2759.4,1.15614]
[1645880070105,0.87200974,2760.1,2760.0,0.64891552]
[1645880070303,0.87200974,2760.2,2759.9,0.64891552]
[1645880071309,0.87200974,2760.1,2760.0,0.64891552]
[1645880072108,0.87200974,2760.2,2760.0,0.64906338]
[1645880072355,0.87200974,2760.1,2759.9,0.64906024]
[1645880072544,0.87200974,2760.0,2759.8,0.00433458]
[1645880072846,0.00433371,2760.3,2759.9,0.64908068]
[1645880073043,0.87193558,2760.2,2759.9,0.64908068]
[1645880073644,0.87193558,2760.1,2760.0,0.64908068]
[1645880073944,0.87193558,2760.1,2760.0,0.64905135]
[1645880074144,0.87193558,2760.2,2760.0,0.64905135]
[1645880074344,0.00433371,2760.3,2759.8,0.00433458]
[1645880074345,0.87193558,2760.1,2759.8,0.00433458]
[1645880074546,0.87193558,2760.0,2759.9,0.6490569]
[1645880074744,0.87193558,2760.2,2759.9,0.6490569]
[1645880074949,0.87193558,2760.1,2759.8,0.00433463]
[1645880075150,0.87193558,2760.0,2759.9,0.64912325]
[1645880075349,0.87193558,2760.2,2759.9,0.64912325]
[1645880076084,0.00433371,2760.3,2759.8,0.00433458]
[1645880077088,3.5,2760.6,2759.4,1.98896971]
[1645880077288,0.00442287,2760.3,2759.8,0.00442377]
[1645880078291,3.5,2760.6,2759.4,0.55]
[1645880078489,0.00442287,2760.3,2759.8,0.00442377]
[1645880079492,0.5074,2760.7,2759.4,0.55]
[1645880079689,0.00442287,2760.3,2759.8,0.00442377]
[1645880080742,16.613,2760.2,2759.4,0.25]
[1645880080942,11.09,2760.0,2759.8,0.00441178]
[1645880081141,3.6449,2759.9,2759.8,0.00441178]
[1645880081542,3.5,2759.9,2759.8,0.00441178]
[1645880081738,0.1449,2760.0,2759.8,0.00441178]
[1645880081939,0.1449,2760.0,2759.1,0.00341714]
[1645880082140,0.1449,2760.0,2759.7,0.00441166]
[1645880083239,0.1449,2760.0,2759.1,0.00341714]
[1645880083445,0.1449,2760.0,2759.7,0.00441166]
[1645880083700,0.00441069,2760.3,2759.7,0.00441166]
[1645880084300,4.71434847,2760.8,2759.2,0.1449]
[1645880084500,0.00441247,2760.3,2759.8,0.00441336]
[1645880085501,0.3625,2760.7,2759.2,3.59352041]
[1645880085702,0.00441252,2760.3,2759.8,0.00441342]
[1645880086702,0.3625,2760.7,2759.2,3.59352041]
[1645880086905,0.00441252,2760.3,2759.8,0.00441342]
[1645880087940,3.86634847,2760.8,2759.2,4.75852311]
[1645880088137,0.00499574,2760.3,2759.8,0.00499675]
[1645880089140,0.36634847,2760.8,2759.2,4.75852311]
[1645880089339,0.00499574,2760.3,2759.8,0.00499675]
[1645880090239,0.3625,2760.7,2759.2,4.75852311]
[1645880090839,0.00499574,2760.3,2759.8,0.00499675]
[1645880091502,0.3625,2760.7,2759.2,4.75852311]
[1645880091703,0.00464633,2760.3,2759.8,0.00464727]
[1645880092704,0.3625,2760.7,2759.2,4.75852311]
[1645880092903,0.00464633,2760.3,2759.8,0.00464727]
[1645880093908,0.36634847,2760.8,2759.5,1.4627]
[1645880094108,3.86634847,2760.8,2759.5,1.4627]
[1645880094305,3.86634847,2760.8,2759.8,0.00464727]
[1645880094306,0.00464633,2760.3,2759.8,0.00464727]
[1645880095152,3.50384847,2760.8,2759.5,1.4627]
[1645880095352,0.00464633,2760.3,2759.8,0.00464727]
[1645880096253,3.5,2760.6,2759.5,1.1627]
[1645880096457,3.50384847,2760.6,2759.8,0.00467077]
[1645880096653,0.00466983,2760.3,2759.8,0.00467077]
[1645880097553,0.00384847,2760.7,2759.5,1.4627]
[1645880097753,0.00466983,2760.3,2759.8,0.00467077]
[1645880098785,3.5,2760.6,2759.5,1.4627]
[1645880098990,0.00466983,2760.3,2759.8,0.00467077]
[1645880099994,0.00384847,2760.7,2759.5,1.4627]
[1645880100195,0.00467888,2760.3,2759.8,0.00467982]
[1645880101296,0.00384847,2760.7,2759.5,1.4627]
[1645880101505,0.00467888,2760.3,2759.8,0.00467982]
[1645880101699,0.00467888,2760.3,2759.9,0.6487955]
[1645880101899,0.87277845,2760.2,2759.9,0.6487955]
[1645880102550,0.87277845,2760.1,2760.0,0.6487955]
[1645880102752,0.0015838,2760.0,2759.8,0.00438802]
[1645880102950,0.0015838,2760.0,2759.9,0.58106443]
[1645880103353,0.0015838,2760.0,2759.9,0.58098716]
[1645880103556,0.87436225,2760.0,2759.4,3.37985]
[1645880103756,0.94244467,2759.9,2759.8,0.00438663]
[1645880104166,0.0015838,2760.0,2759.8,0.58547173]
[1645880104357,0.0015838,2760.0,2759.9,0.5810851]
[1645880104558,0.0015838,2760.0,2759.8,0.00438663]
[1645880104765,0.0015838,2760.0,2759.9,0.55575135]
[1645880105057,0.0015838,2760.0,2759.9,0.55569474]
[1645880105256,0.0015838,2760.0,2759.8,0.00438663]
[1645880105458,0.94402847,2760.0,2759.9,0.55566517]
[1645880105659,3.5015838,2760.0,2759.8,0.00438663]
[1645880105858,0.72830778,2759.4,2759.1,0.00341714]
[1645880106096,0.94244467,2759.3,2759.1,0.52495018]
[1645880106298,0.72830778,2759.4,2759.2,0.52503668]
[1645880106497,0.9992926,2759.3,2758.9,7.28023806]
[1645880106699,0.9992926,2759.3,2759.0,0.52475086]
[1645880110949,0.9992926,2759.3,2759.0,0.52974775]
[1645880111147,0.9992926,2759.3,2759.1,0.52475086]
[1645880112146,0.9992926,2759.3,2759.2,0.52475086]
[1645880113349,0.9992926,2759.3,2759.1,0.00464918]
[1645880113590,0.9992926,2759.3,2759.2,0.52475086]
[1645880114593,0.9992926,2759.3,2759.1,0.00464918]
[1645880114793,0.9992926,2759.3,2759.2,0.52475086]
[1645880116197,0.9992926,2759.3,2759.1,0.00464918]
[1645880116396,0.9992926,2759.3,2759.2,0.52380923]
[1645880116799,4.4992926,2759.3,2758.9,7.2489]
[1645880117000,0.9992926,2759.2,2759.1,0.00467805]
[1645880117206,4.4992926,2759.2,2759.1,0.00467805]
[1645880117849,4.4992926,2759.2,2758.9,7.2489]
[1645880118050,0.9992926,2759.1,2758.9,7.2489]
[1645880118349,0.9992926,2759.1,2759.0,0.00467809]
[1645880119045,0.9992926,2759.1,2758.9,7.2489]
[1645880119452,0.9992926,2759.1,2758.9,7.25357816]
[1645880120356,0.9992926,2759.1,2758.9,7.2489]
[1645880120656,0.9992926,2759.1,2758.9,7.25356596]
[1645880120657,3.5,2759.0,2758.9,7.25356596]
[1645880120857,4.4992926,2759.0,2758.9,7.25356596]
[1645880121106,21.4122926,2759.0,2758.9,6.99319795]
[1645880121313,23.30551724,2759.0,2758.9,6.99319795]
[1645880121511,24.77269254,2759.0,2758.9,6.98853199]
[1645880122412,26.58672254,2759.0,2758.9,6.98853199]
[1645880122613,25.89928648,2759.0,2758.9,6.98853199]
[1645880123210,31.49068015,2759.0,2758.8,7.531e-05]
[1645880123412,23.8705379,2758.9,2758.8,7.531e-05]
[1645880123610,24.6935379,2758.9,2758.8,7.531e-05]
[1645880123910,0.90715,2758.8,2757.3,0.00341714]
[1645880124110,0.90716,2758.1,2757.6,0.25]
[1645880124313,3.5,2758.0,2757.7,0.52578914]
[1645880124513,3.5,2758.0,2757.3,0.52578914]
[1645880124710,3.5,2758.0,2757.4,0.52202872]
[1645880124950,0.90716,2758.1,2757.5,0.52202872]
[1645880125156,0.90716,2758.1,2757.6,0.52202872]
[1645880125350,0.90716,2758.1,2757.7,0.52202872]
[1645880125551,3.5,2758.0,2757.1,0.00341714]
[1645880125752,3.5,2758.0,2757.3,0.52546949]
[1645880125954,53.5,2758.0,2757.3,0.52205235]
[1645880126150,50.0,2758.0,2757.3,0.52546949]
[1645880126650,3.5,2757.9,2757.5,0.00186325]
[1645880127251,50.0,2758.0,2757.5,0.00186325]
[1645880127660,50.0,2758.0,2757.4,0.52205235]
[1645880127955,50.0,2758.0,2757.6,0.00499468]
[1645880128151,50.0,2758.0,2757.7,0.52205235]
[1645880128355,50.0,2758.0,2757.8,0.52205235]
[1645880128595,50.0,2758.0,2757.6,0.00499468]
[1645880128596,50.0,2758.0,2757.9,0.52205235]
[1645880128996,50.0,2758.0,2757.9,1.18455235]
[1645880129195,50.0,2758.0,2757.9,1.57063829]
[1645880129400,50.0,2758.0,2757.9,2.67920155]
[1645880129798,50.0,2758.0,2757.9,3.67920155]
[1645880131301,50.0,2758.0,2757.9,3.29311561]
[1645880131701,50.0,2758.0,2757.9,2.18455235]
[1645880131902,50.0,2758.0,2757.9,1.18455235]
[1645880133546,50.0,2758.0,2757.9,0.82205235]
[1645880136291,52.0,2758.0,2757.9,0.82205235]
[1645880136492,52.0,2758.0,2757.9,0.3]
[1645880136692,52.0,2758.0,2757.8,0.30463886]
[1645880136893,52.0,2758.0,2757.8,0.00463886]
[1645880137091,52.0,2758.0,2757.7,3.24507561]
[1645880137294,52.0,2758.0,2757.7,1.8074]
[1645880137492,52.0,2758.0,2757.8,0.0046625]
[1645880138292,52.0,2758.0,2757.7,0.1449]
[1645880138692,52.0,2758.0,2757.8,0.0046625]
[1645880139492,52.0,2758.0,2757.7,0.1449]
[1645880139942,52.0,2758.0,2757.8,0.0046625]
[1645880140742,52.0,2758.0,2757.7,0.1449]
[1645880140944,52.0,2758.0,2757.8,0.00466092]
[1645880142045,52.0,2758.0,2757.7,0.1449]
[1645880142246,52.0,2758.0,2757.8,0.00466092]
[1645880143249,52.0,2758.0,2757.7,0.1449]
[1645880143449,52.0,2758.0,2757.8,0.00466092]
[1645880144487,52.0,2758.0,2757.7,1.05158]
[1645880144686,52.0,2758.0,2757.8,0.00466102]
[1645880145594,52.0,2758.0,2757.7,1.05158]
[1645880145793,52.0,2758.0,2757.8,0.00466102]
[1645880146795,52.0,2758.0,2757.7,1.05158]
[1645880146992,52.0,2758.0,2757.8,0.00466102]
[1645880148044,52.0,2758.0,2757.7,0.1449]
[1645880148246,52.0,2758.0,2757.8,0.00490491]
[1645880149244,52.0,2758.0,2757.7,0.1449]
[1645880149445,52.0,2758.0,2757.8,0.00490491]
[1645880149843,52.0,2758.0,2757.8,0.91158491]
[1645880150445,52.0,2758.0,2757.8,0.90668]
[1645880150647,52.0,2758.0,2757.8,0.91158491]
[1645880151499,16.34013393,2758.0,2757.9,3.5]
[1645880151694,0.72830778,2759.4,2758.1,11.09]
[1645880151890,0.72830778,2759.4,2758.5,0.90644]
[1645880152494,0.72830778,2759.4,2758.5,1.20985714]
[1645880152690,0.72830778,2759.4,2758.7,2.33755362]
[1645880152891,0.72830778,2759.4,2758.7,1.33755362]
[1645880153191,0.72830778,2759.4,2758.7,0.00499091]
[1645880153993,0.72830778,2759.4,2758.5,0.30341714]
[1645880154190,0.72830778,2759.4,2758.7,0.00499103]
[1645880155179,0.72830778,2759.4,2758.5,1.22851714]
[1645880155374,0.72830778,2759.4,2758.6,3.5]
[1645880155579,0.72830778,2759.4,2758.7,0.00499103]
[1645880155976,0.72830778,2759.4,2758.7,0.52799103]
[1645880156173,0.72830778,2759.4,2758.8,3.5]
[1645880156373,0.72830778,2759.4,2758.8,3.8]
[1645880156573,0.72830778,2759.4,2758.8,4.8]
[1645880156776,0.72830778,2759.4,2758.8,5.70634]
[1645880157173,0.72830778,2759.4,2759.1,1.02164299]
[1645880158789,0.72830778,2759.4,2759.1,1.92788299]
[1645880158990,0.72830778,2759.4,2759.1,2.66728299]
[1645880159688,0.72830778,2759.4,2759.1,2.96728299]
[1645880160495,0.72830778,2759.4,2759.1,1.94564]
[1645880160695,0.72830778,2759.4,2759.1,1.20624]
[1645880161297,0.72830778,2759.4,2759.2,0.49281706]
[1645880161695,0.72830778,2759.4,2759.3,1.40660896]
[1645880161895,0.72830778,2759.4,2759.3,1.89942602]
[1645880162941,0.00432611,2759.4,2759.3,2.19942602]
[1645880163342,0.00432611,2759.4,2759.3,5.69942602]
[1645880163752,0.00432611,2759.4,2759.3,6.69942602]
[1645880164149,0.00432611,2759.4,2759.3,6.84432602]
[1645880165249,0.00432611,2759.4,2759.3,3.34432602]
[1645880165649,0.00432611,2759.4,2759.3,2.34432602]
[1645880165851,0.00432611,2759.4,2759.3,3.34432602]
[1645880166101,0.00432611,2759.4,2759.3,2.34432602]
[1645880166303,0.00432611,2759.4,2759.3,6.84432602]
[1645880166502,0.00432611,2759.4,2759.3,5.84432602]
[1645880166703,0.00432611,2759.4,2759.3,3.34432602]
[1645880167104,0.00432611,2759.4,2759.3,2.34432602]
[1645880167305,0.00432611,2759.4,2759.3,3.34432602]
[1645880167509,0.00432611,2759.4,2759.3,2.34432602]
[1645880167805,0.00432611,2759.4,2759.3,3.34432602]
[1645880168006,0.00432611,2759.4,2759.3,2.34432602]
[1645880168306,0.00432611,2759.4,2759.3,3.34432602]
[1645880168508,0.00432611,2759.4,2759.3,2.34432602]
[1645880168705,0.00432611,2759.4,2759.3,3.34432602]
[1645880168909,0.00432611,2759.4,2759.3,2.34432602]
[1645880169109,2.611e-05,2759.4,2759.3,24.31170498]
[1645880169309,2.611e-05,2759.4,2759.3,30.12027798]
[1645880169510,0.01922223,2760.1,2759.6,11.09]
[1645880169511,8.988e-05,2760.0,2759.6,11.09]
[1645880169708,8.988e-05,2760.0,2759.8,11.09]
[1645880169972,8.988e-05,2760.0,2759.9,12.25071706]
[1645880170171,8.988e-05,2760.0,2759.9,13.31731706]
[1645880170370,8.988e-05,2760.0,2759.9,15.22321706]
[1645880170573,8.988e-05,2760.0,2759.9,16.22321706]
[1645880170971,8.988e-05,2760.0,2759.9,15.07831706]
[1645880171371,8.988e-05,2760.0,2759.9,3.98831706]
[1645880171576,8.988e-05,2760.0,2759.9,1.49281706]
[1645880171771,8.988e-05,2760.0,2759.9,0.50455954]
[1645880171974,8.988e-05,2760.0,2759.8,1.6]
[1645880172172,8.988e-05,2760.0,2759.8,0.3]
[1645880172375,8.988e-05,2760.0,2759.7,4.5496573]
[1645880172575,8.988e-05,2760.0,2759.8,0.50457998]
[1645880173601,0.00474939,2760.0,2759.8,0.50457998]
[1645880174405,8.988e-05,2760.0,2759.8,0.50457998]
[1645880174605,0.0048184,2760.0,2759.8,0.50457998]
[1645880174906,0.0048184,2760.0,2759.9,1.01359401]
[1645880175107,0.0048184,2760.0,2759.9,1.31359401]
[1645880175708,8.988e-05,2760.0,2759.8,0.6]
[1645880175907,8.988e-05,2760.0,2759.8,0.3]
[1645880177111,0.0048184,2760.0,2759.8,0.3]
[1645880178250,0.00483872,2760.0,2759.8,11.39]
[1645880178457,0.00483872,2760.0,2759.9,15.09431651]
[1645880178752,0.00483872,2760.0,2759.9,16.09431651]
[1645880178951,0.00483872,2760.0,2759.9,17.09431651]
[1645880179355,8.988e-05,2760.0,2759.9,17.09431651]
[1645880179751,8.988e-05,2760.0,2759.9,6.00431651]
[1645880179957,8.988e-05,2760.0,2759.9,17.09431651]
[1645880180155,8.988e-05,2760.0,2759.9,14.50022651]
[1645880180957,8.988e-05,2760.0,2759.9,15.50022651]
[1645880181398,8.988e-05,2760.0,2759.9,24.18752651]
[1645880181602,8.988e-05,2760.0,2759.9,25.81127547]
[1645880181798,8.988e-05,2760.0,2759.9,20.55002651]
[1645880182398,8.988e-05,2760.0,2759.9,50.55002651]
[1645880182703,0.00384847,2761.4,2761.1,1.37911557]
[1645880182898,2.16967907,2762.2,2761.2,18.8561]
[1645880182899,0.00384847,2761.6,2761.2,18.8561]
[1645880183097,1.33547828,2762.4,2761.2,18.8561]
[1645880183098,1.01159873,2762.1,2761.3,12.09]
[1645880183298,1.01159873,2762.3,2761.4,1.523]
[1645880183499,1.00775026,2762.2,2761.4,1.523]
[1645880183799,0.06,2762.4,2761.5,11.09]
[1645880183800,1.00775026,2762.1,2761.5,11.09]